bitfinex-derivatives/quotes_ETHF0:USTF0_20210109
["timestamp","ask_amount","ask_price","bid_price","bid_amount"]
[1610208349647,4.00959,1216.4,1216.2,4.00959]
[1610208350348,4.00959,1216.4,1216.2,54.00959]
[1610208351051,4.00959,1216.4,1216.2,50.0]
[1610208351750,4.00959,1216.4,1216.3,50.0]
[1610208352151,1.5785,1216.8,1216.3,111.3319]
[1610208352352,105.00595143,1217.0,1216.3,111.3319]
[1610208352552,105.00595143,1217.0,1216.4,50.0]
[1610208352854,106.87616655,1217.1,1216.5,50.0]
[1610208353253,106.87616655,1217.1,1216.4,50.0]
[1610208353453,4.00959,1217.0,1216.8,4.00959]
[1610208354054,4.00959,1217.0,1216.7,50.0]
[1610208354654,1.8131,1217.1,1216.8,50.0]
[1610208355055,107.48748304,1217.4,1216.4,50.0]
[1610208355355,6.33969,1217.4,1217.2,4.00959]
[1610208356257,6.33969,1217.4,1217.2,50.0]
[1610208356655,6.33969,1217.4,1216.8,50.0]
[1610208357057,6.33969,1217.4,1216.7,50.0]
[1610208357256,6.33969,1217.4,1216.5,48.1608]
[1610208357456,4.00959,1216.8,1216.6,50.0]
[1610208357956,1.8284,1217.1,1216.7,50.0]
[1610208358256,1.8284,1217.1,1216.6,50.0]
[1610208358757,1.8284,1217.1,1216.7,50.0]
[1610208359156,1.8284,1217.1,1216.6,50.0]
[1610208359355,4.00959,1216.9,1216.7,4.00959]
[1610208359556,4.00959,1216.9,1216.7,54.00959]
[1610208360157,4.00959,1216.9,1216.8,50.0]
[1610208360558,4.00959,1216.9,1216.7,54.00959]
[1610208361262,1.8284,1217.1,1216.7,54.00959]
[1610208361461,1.8284,1217.1,1216.8,50.0]
[1610208361860,1.8284,1217.1,1216.9,50.0]
[1610208362161,4.00959,1217.0,1216.6,54.00959]
[1610208362562,4.00959,1217.0,1216.7,50.0]
[1610208362865,4.00959,1217.0,1216.8,50.0]
[1610208363865,4.00959,1217.0,1216.6,4.00959]
[1610208364063,4.00959,1217.0,1216.9,50.0]
[1610208364262,4.00959,1217.0,1216.9,54.00959]
[1610208364464,4.00959,1217.0,1216.9,4.00959]
[1610208364665,4.00959,1217.0,1216.7,50.0]
[1610208365470,4.00959,1217.0,1216.5,48.1608]
[1610208366071,4.00959,1217.0,1216.6,50.0]
[1610208366270,4.00959,1217.0,1216.7,4.00959]
[1610208366471,4.00959,1217.0,1216.8,50.0]
[1610208367070,4.00959,1217.0,1216.7,54.00959]
[1610208367470,4.00959,1217.0,1216.8,50.0]
[1610208367670,4.00959,1217.0,1216.7,54.00959]
[1610208368070,4.00959,1217.0,1216.8,50.0]
[1610208368470,4.00959,1217.0,1216.7,50.0]
[1610208369270,4.00959,1217.0,1216.8,50.0]
[1610208369873,4.00959,1217.0,1216.5,52.17039]
[1610208370173,4.00959,1217.0,1216.7,54.00959]
[1610208370574,4.00959,1217.0,1216.7,4.00959]
[1610208370775,4.00959,1217.0,1216.8,50.0]
[1610208370974,1.8284,1217.1,1216.8,59.0124]
[1610208371373,2.3301,1217.4,1216.9,50.0]
[1610208371574,105.09552496,1217.6,1216.9,50.0]
[1610208371777,105.09552496,1217.6,1217.0,50.0]
[1610208371974,107.53072013,1217.7,1216.9,50.0]
[1610208372374,4.00959,1217.4,1217.3,4.00959]
[1610208373277,4.00959,1217.4,1217.3,54.00959]
[1610208374175,4.00959,1217.4,1217.2,50.0]
[1610208374775,4.00959,1217.4,1217.1,100.54749]
[1610208374976,4.00959,1217.4,1217.1,50.0]
[1610208375176,4.00959,1217.4,1217.0,50.0]
[1610208375578,4.00959,1217.4,1216.7,112.6957]
[1610208375777,5.64329,1217.4,1216.7,112.6957]
[1610208375977,4.00959,1217.4,1216.7,112.6957]
[1610208376179,5.87569,1217.4,1216.7,112.6957]
[1610208376377,4.00959,1217.2,1217.1,4.00959]
[1610208376577,4.00959,1217.2,1216.8,50.0]
[1610208378280,4.00959,1217.0,1216.9,4.00959]
[1610208378478,5.71889,1217.0,1216.9,54.00959]
[1610208379379,1.7093,1217.0,1216.9,54.00959]
[1610208382586,1.7093,1217.0,1216.9,4.00959]
[1610208382785,1.7093,1217.0,1216.9,54.00959]
[1610208383486,1.7093,1217.0,1216.9,4.00959]
[1610208383686,4.00959,1217.2,1216.9,4.00959]
[1610208383986,4.00959,1217.2,1216.9,54.00959]
[1610208384388,4.00959,1217.2,1216.9,4.00959]
[1610208384988,4.00959,1217.2,1216.8,50.0]
[1610208385589,4.00959,1217.2,1216.2,58.9243]
[1610208385890,4.00959,1217.2,1216.7,50.0]
[1610208386391,4.00959,1216.8,1216.6,4.00959]
[1610208386591,5.69119,1216.8,1216.7,50.0]
[1610208386792,1.6816,1216.8,1216.7,50.0]
[1610208388694,1.6816,1216.8,1216.7,97.9782]
[1610208388896,1.6816,1216.8,1216.7,99.23277919]
[1610208390599,1.6816,1216.8,1216.7,129.23277919]
[1610208391603,1.8661,1217.4,1216.7,129.23277919]
[1610208391800,1.8661,1217.4,1216.8,50.0]
[1610208392000,4.00959,1217.6,1216.8,80.0]
[1610208392301,4.00959,1217.6,1217.5,4.00959]
[1610208392701,4.00959,1217.6,1217.5,54.00959]
[1610208394304,2.3698,1217.7,1217.5,54.00959]
[1610208394503,4.00959,1217.8,1217.5,54.00959]
[1610208394704,4.00959,1217.8,1217.6,50.0]
[1610208395103,4.00959,1217.8,1217.7,50.0]
[1610208395804,4.00959,1217.8,1217.6,50.0]
[1610208396004,7.94874182,1217.8,1217.6,50.0]
[1610208396406,7.94874182,1217.8,1217.7,50.0]
[1610208396805,7.94874182,1217.8,1217.6,50.0]
[1610208397005,7.94874182,1217.8,1217.5,4.00959]
[1610208397205,7.94874182,1217.8,1217.7,50.0]
[1610208397406,3.93915182,1217.8,1217.7,50.0]
[1610208397806,3.93915182,1217.8,1217.5,4.00959]
[1610208398207,3.93915182,1217.8,1217.6,50.0]
[1610208398406,3.93915182,1217.8,1217.7,54.00959]
[1610208399107,1.6068,1217.8,1217.7,54.00959]
[1610208401109,106.00770419,1218.3,1217.8,59.52]
[1610208401710,109.95592227,1218.4,1217.8,109.52]
[1610208401909,2.33100697,1218.2,1217.8,109.52]
[1610208402109,4.14270697,1218.2,1217.9,50.0]
[1610208402309,4.14270697,1218.2,1218.1,4.00959]
[1610208402511,4.14270697,1218.2,1218.0,42.90859]
[1610208402709,4.14270697,1218.2,1218.1,105.7276]
[1610208403111,1.8117,1218.2,1218.1,50.0]
[1610208404310,1.8117,1218.2,1218.1,54.00959]
[1610208404912,105.9766551,1218.7,1218.1,54.00959]
[1610208405114,110.07594538,1218.9,1218.1,54.00959]
[1610208405312,110.07594538,1218.9,1218.2,56.7717]
[1610208405515,110.07594538,1218.9,1218.2,106.7717]
[1610208406012,106.06635538,1218.9,1218.3,50.0]
[1610208406413,106.06635538,1218.9,1218.8,4.00959]
[1610208406615,110.14586652,1219.0,1218.8,4.00959]
[1610208407115,110.14586652,1219.0,1218.8,54.00959]
[1610208407515,106.13627652,1219.0,1218.9,50.0]
[1610208407716,106.13627652,1219.0,1218.9,58.1904]
[1610208407917,106.1237919,1219.1,1218.9,58.1904]
[1610208408217,106.1237919,1219.1,1219.0,50.0]
[1610208408416,5.15883019,1219.1,1219.0,54.00959]
[1610208408617,106.15417711,1219.2,1219.0,54.00959]
[1610208409019,106.15417711,1219.2,1219.1,50.0]
[1610208409817,110.17733783,1219.3,1219.1,50.0]
[1610208410016,106.16774783,1219.3,1219.1,50.0]
[1610208410219,106.16774783,1219.3,1219.2,50.0]
[1610208410418,106.16774783,1219.3,1219.2,54.00959]
[1610208412420,106.27448019,1219.5,1219.2,54.00959]
[1610208412622,106.27448019,1219.5,1219.3,50.0]
[1610208413321,110.31803399,1219.6,1219.3,50.0]
[1610208413521,110.31803399,1219.6,1219.3,24.0]
[1610208413721,110.31803399,1219.6,1219.4,50.0]
[1610208414422,106.31189586,1219.5,1219.3,50.0]
[1610208414623,40.22342642,1219.4,1219.3,50.0]
[1610208414823,106.31837624,1219.4,1219.3,50.0]
[1610208415022,36.09678362,1219.4,1219.3,50.0]
[1610208415424,36.09678362,1219.4,1219.3,44.98663181]
[1610208415624,23.06247845,1219.4,1219.3,44.98663181]
[1610208416024,23.06247845,1219.4,1218.9,50.0]
[1610208416223,106.31950127,1219.4,1218.9,50.0]
[1610208416425,106.31950127,1219.4,1219.3,4.00959]
[1610208416624,106.31950127,1219.4,1219.3,55.24719]
[1610208416825,1.6765,1219.5,1219.3,55.24719]
[1610208418929,1.6765,1219.5,1219.3,105.24719]
[1610208419329,4.00959,1219.6,1219.3,105.24719]
[1610208419929,4.00959,1219.6,1219.4,50.0]
[1610208420330,4.00959,1219.6,1219.5,54.00959]
[1610208421431,106.27155615,1220.0,1219.5,50.0]
[1610208421633,106.27155615,1220.0,1219.7,66.7549]
[1610208421833,106.26223192,1220.1,1219.7,66.7549]
[1610208422433,106.26223192,1220.1,1220.0,4.00959]
[1610208422834,106.26223192,1220.1,1220.0,50.0]
[1610208423434,108.58692313,1220.1,1220.0,50.0]
[1610208424537,2.32469121,1220.1,1220.0,54.00959]
[1610208425236,2.32469121,1220.1,1220.0,56.38299]
[1610208426138,106.23827414,1220.3,1220.0,65.40029]
[1610208426539,106.23827414,1220.3,1220.2,4.00959]
[1610208426940,106.23827414,1220.3,1220.2,54.00959]
[1610208427142,106.23827414,1220.3,1220.2,50.0]
[1610208427543,108.56219059,1220.3,1220.2,50.0]
[1610208428544,108.56219059,1220.3,1220.2,54.00959]
[1610208428943,106.23827414,1220.3,1220.2,54.00959]
[1610208429344,106.23078785,1220.4,1220.2,54.00959]
[1610208429744,106.23078785,1220.4,1220.3,50.0]
[1610208430545,106.22544373,1220.5,1220.3,50.0]
[1610208430745,106.22544373,1220.5,1220.3,59.2668]
[1610208430946,106.22544373,1220.5,1220.4,50.0]
[1610208432146,106.2010223,1220.6,1220.4,50.0]
[1610208432346,106.2010223,1220.6,1220.5,52.6118]
[1610208432547,106.18899666,1220.9,1220.5,106.62139]
[1610208432949,106.18899666,1220.9,1220.6,50.0]
[1610208433249,106.18899666,1220.9,1220.7,50.0]
[1610208433649,106.18899666,1220.9,1220.8,50.0]
[1610208434050,106.18899666,1220.9,1220.6,50.0]
[1610208434449,23.03589178,1220.9,1220.8,50.0]
[1610208434750,20.03225642,1221.0,1220.8,50.0]
[1610208434950,20.03225642,1221.0,1220.7,4.00959]
[1610208435151,106.18709506,1220.9,1220.7,4.00959]
[1610208435451,106.18709506,1220.9,1220.8,50.0]
[1610208436555,110.19668506,1220.9,1220.8,50.0]
[1610208436755,24.04288528,1220.9,1220.8,50.0]
[1610208436958,24.04288528,1220.9,1220.7,50.0]
[1610208437156,29.19001252,1220.9,1220.7,50.0]
[1610208437555,9.15671724,1220.9,1220.0,115.5738]
[1610208437754,8.01331776,1220.8,1220.0,115.5738]
[1610208437958,9.63741776,1220.8,1220.0,115.5738]
[1610208438156,106.22919672,1220.4,1220.0,65.5738]
[1610208438355,108.57779672,1220.4,1219.9,50.0]
[1610208438556,108.57779672,1220.4,1219.4,1.7829]
[1610208438557,4.00959,1220.1,1219.6,54.00959]
[1610208438758,5.77039,1220.1,1219.7,67.8473]
[1610208438960,5.77039,1220.1,1219.7,117.8473]
[1610208439359,5.77039,1220.1,1219.8,50.0]
[1610208439758,5.77039,1220.1,1219.9,50.0]
[1610208440158,5.77039,1220.1,1219.8,50.0]
[1610208440559,5.77039,1220.1,1219.9,52.70509]
[1610208440759,7.42509,1220.1,1219.8,50.0]
[1610208440959,7.42509,1220.1,1219.1,50.0]
[1610208441160,113.67561991,1220.1,1219.1,50.0]
[1610208441563,113.67561991,1220.1,1219.9,50.0]
[1610208441760,5.77039,1220.1,1219.0,61.4084]
[1610208441960,5.77039,1220.1,1219.1,50.0]
[1610208442161,112.02107285,1220.1,1219.8,50.0]
[1610208442560,112.02107285,1220.1,1220.0,4.00959]
[1610208442760,5.77039,1220.1,1220.0,4.00959]
[1610208442960,5.77039,1220.1,1220.0,50.0]
[1610208448366,1.7608,1220.1,1220.0,50.0]
[1610208448566,106.22961839,1220.3,1220.0,50.0]
[1610208448567,110.23920839,1220.3,1220.0,50.0]
[1610208448768,110.23920839,1220.3,1220.1,50.0]
[1610208448968,4.00959,1220.3,1220.1,50.0]
[1610208449169,4.00959,1220.3,1220.2,50.0]
[1610208449568,4.00959,1220.3,1220.0,50.0]
[1610208449769,108.57817499,1220.4,1219.9,4.00959]
[1610208450369,106.23252844,1220.3,1220.2,50.0]
[1610208450570,108.57311505,1220.4,1220.2,54.00959]
[1610208450769,108.57311505,1220.4,1220.2,4.00959]
[1610208450970,2.32099208,1220.3,1220.2,4.00959]
[1610208451774,2.32099208,1220.3,1220.2,54.00959]
[1610208452374,2.3486,1220.4,1220.2,54.00959]
[1610208452573,106.20879996,1220.7,1220.3,50.0]
[1610208452775,106.19689093,1220.8,1220.3,50.0]
[1610208452975,106.19689093,1220.8,1220.4,50.0]
[1610208453374,106.19689093,1220.8,1220.3,50.0]
[1610208453675,106.19689093,1220.8,1220.4,50.0]
[1610208453976,106.19689093,1220.8,1220.5,50.0]
[1610208454178,106.19090641,1220.9,1220.5,50.0]
[1610208454380,106.19090641,1220.9,1220.5,2.0061]
[1610208454578,110.20049641,1220.9,1220.7,4.00959]
[1610208454977,110.20049641,1220.9,1220.8,50.0]
[1610208456078,106.19090641,1220.9,1220.8,50.0]
[1610208456478,112.51995341,1220.9,1220.8,50.0]
[1610208457080,108.51036341,1220.9,1220.8,50.0]
[1610208458580,112.51995341,1220.9,1220.8,50.0]
[1610208460787,108.51036341,1220.9,1220.8,50.0]
[1610208462587,112.51995341,1220.9,1220.8,50.0]
[1610208466992,112.51995341,1220.9,1220.7,50.0]
[1610208467392,112.51995341,1220.9,1220.2,1.6657]
[1610208467393,3.00454986,1220.8,1220.4,50.0]
[1610208467593,18.34489701,1220.8,1220.4,50.0]
[1610208467993,106.20915087,1220.7,1220.3,50.0]
[1610208468193,106.20915087,1220.7,1220.4,50.0]
[1610208468593,4.00959,1220.5,1220.4,50.0]
[1610208469493,4.00959,1220.5,1220.3,50.0]
[1610208469694,4.00959,1220.5,1220.4,50.0]
[1610208470092,4.00959,1220.5,1220.3,50.0]
[1610208470293,110.23866493,1220.5,1220.3,50.0]
[1610208470494,112.55968532,1220.5,1220.4,50.0]
[1610208470694,112.55968532,1220.5,1220.2,51.7407]
[1610208470894,112.55968532,1220.5,1220.3,50.0]
[1610208471094,112.55968532,1220.5,1220.4,50.0]
[1610208471895,6.33061039,1220.5,1220.4,50.0]
[1610208472696,6.33061039,1220.5,1220.4,54.00959]
[1610208474898,112.55445102,1220.5,1220.4,54.00959]
[1610208475198,6.33061039,1220.5,1220.4,54.00959]
[1610208477199,112.56163908,1220.5,1220.3,50.0]
[1610208477600,112.56163908,1220.5,1220.2,50.075]
[1610208478000,112.56163908,1220.5,1220.3,50.0]
[1610208478400,112.56163908,1220.5,1220.4,50.0]
[1610208478598,110.24061869,1220.5,1220.4,50.0]
[1610208478801,110.24061869,1220.5,1220.3,50.0]
[1610208479201,110.24061869,1220.5,1220.4,50.0]
[1610208479401,110.24061869,1220.5,1220.2,100.075]
[1610208479800,110.24061869,1220.5,1220.4,50.0]
[1610208480001,112.56211196,1220.5,1220.4,50.0]
[1610208480201,112.56211196,1220.5,1220.3,50.0]
[1610208480601,112.56211196,1220.5,1220.2,100.075]
[1610208480801,106.24140912,1220.4,1220.2,100.075]
[1610208481001,106.24140912,1220.4,1220.3,50.0]
[1610208481203,112.57456782,1220.5,1220.3,50.0]
[1610208481402,108.56647072,1220.4,1220.3,50.0]
[1610208481601,108.56647072,1220.4,1220.2,50.075]
[1610208482002,108.56647072,1220.4,1220.3,50.0]
[1610208482904,2.32166436,1220.4,1220.3,50.0]
[1610208483104,108.56577442,1220.4,1220.3,50.0]
[1610208483706,106.24411006,1220.4,1220.3,50.0]
[1610208483906,110.25086812,1220.5,1220.3,50.0]
[1610208484106,2.32144438,1220.4,1220.3,50.0]
[1610208484306,2.32144438,1220.4,1220.0,4.00959]
[1610208484706,4.00959,1220.2,1220.1,50.0]
[1610208485107,4.00959,1220.2,1220.0,4.00959]
[1610208485408,6.3309324,1220.2,1220.0,4.00959]
[1610208485607,6.3309324,1220.2,1220.1,50.0]
[1610208487811,2.3213424,1220.2,1220.1,50.0]
[1610208488614,2.3213424,1220.2,1220.1,59.2111]
[1610208488814,2.3213424,1220.2,1220.1,50.0]
[1610208489918,2.32002773,1220.5,1220.1,102.3794]
[1610208490318,2.32002773,1220.5,1220.2,50.0]
[1610208490718,2.32002773,1220.5,1220.4,4.00959]
[1610208491118,2.31957233,1220.7,1220.4,54.00959]
[1610208491620,2.31957233,1220.7,1220.4,4.00959]
[1610208492123,2.31957233,1220.7,1220.5,50.0]
[1610208492326,2.31957233,1220.7,1220.6,50.0]
[1610208492523,2.31965132,1220.8,1220.4,54.00959]
[1610208492723,4.00959,1220.5,1220.4,54.00959]
[1610208493824,6.33006081,1220.5,1220.4,50.0]
[1610208494024,6.33006081,1220.5,1220.3,50.0]
[1610208494426,112.55866685,1220.5,1220.3,50.0]
[1610208494626,112.55866685,1220.5,1220.0,50.0]
[1610208494826,4.00959,1220.1,1220.0,50.0]
[1610208495026,4.00959,1220.1,1219.9,50.0]
[1610208495427,4.00959,1220.1,1220.0,50.0]
[1610208495828,4.00959,1220.1,1219.8,50.0]
[1610208496127,5.93469,1220.1,1219.8,50.0]
[1610208496327,5.93469,1220.1,1219.5,50.0]
[1610208496725,1.9251,1220.1,1219.6,54.00959]
[1610208497127,1.9251,1220.1,1219.6,4.00959]
[1610208497527,1.9251,1220.1,1219.7,50.0]
[1610208497928,1.9251,1220.1,1219.8,50.0]
[1610208498327,1.9251,1220.1,1219.7,50.0]
[1610208498727,4.00959,1219.8,1219.6,50.0]
[1610208499127,4.00959,1219.8,1219.7,50.0]
[1610208499527,4.00959,1219.8,1219.5,50.0]
[1610208499828,4.00959,1219.8,1219.4,70.10449]
[1610208500027,4.00959,1219.8,1219.6,50.0]
[1610208500429,4.00959,1219.8,1219.5,50.0]
[1610208500829,4.00959,1219.8,1219.6,50.0]
[1610208501528,4.00959,1219.8,1219.5,50.0]
[1610208501928,4.00959,1219.8,1219.6,50.0]
[1610208502429,4.00959,1219.8,1219.7,50.0]
[1610208502829,4.00959,1219.8,1219.6,50.0]
[1610208503029,6.21879,1219.8,1219.6,50.0]
[1610208503229,6.21879,1219.8,1219.5,50.0]
[1610208503629,6.21879,1219.8,1219.7,50.0]
[1610208504030,6.21879,1219.8,1219.5,50.0]
[1610208504230,6.21879,1219.8,1219.7,50.0]
[1610208505230,6.21879,1219.8,1219.6,50.0]
[1610208506033,6.21879,1219.8,1219.7,50.0]
[1610208506532,6.21879,1219.8,1219.6,50.0]
[1610208506932,6.21879,1219.8,1219.7,50.0]
[1610208507331,6.21879,1219.8,1219.4,66.0949]
[1610208507532,6.21879,1219.8,1219.5,50.0]
[1610208507732,6.21879,1219.8,1219.4,116.0949]
[1610208507932,112.50429329,1219.8,1219.4,116.0949]
[1610208508132,112.50429329,1219.8,1219.5,50.0]
[1610208508536,112.50429329,1219.8,1219.6,50.0]
[1610208508935,112.50429329,1219.8,1219.5,50.0]
[1610208509135,112.50429329,1219.8,1219.4,116.0949]
[1610208509536,142.50429329,1219.8,1219.5,50.0]
[1610208509737,106.29967491,1219.6,1219.5,50.0]
[1610208509936,106.29967491,1219.6,1218.9,98.8752]
[1610208510336,106.3119524,1219.5,1218.9,48.8752]
[1610208510537,108.8781524,1219.5,1218.9,48.8752]
[1610208510737,4.00959,1219.0,1218.9,50.0]
[1610208510938,4.00959,1219.0,1218.4,63.33369]
[1610208511138,4.00959,1219.0,1218.7,50.0]
[1610208511536,4.00959,1219.0,1218.9,50.0]
[1610208511936,4.00959,1219.0,1218.8,50.0]
[1610208512337,4.00959,1219.0,1218.9,50.0]
[1610208512637,4.00959,1219.0,1218.8,50.0]
[1610208512839,4.00959,1219.0,1218.9,50.0]
[1610208514140,1.7244,1219.2,1218.9,50.0]
[1610208514539,1.7244,1219.2,1219.0,50.0]
[1610208514939,5.73399,1219.2,1218.6,4.00959]
[1610208515440,5.73399,1219.2,1219.1,50.0]
[1610208518944,1.7244,1219.2,1219.1,50.0]
[1610208519141,2.5662,1219.5,1219.1,50.0]
[1610208519342,106.30418985,1219.7,1219.1,50.0]
[1610208519542,106.30418985,1219.7,1219.2,50.0]
[1610208519742,106.30418985,1219.7,1219.2,57.9144]
[1610208519942,25.77283909,1219.7,1219.2,7.9144]
[1610208520142,108.50131891,1219.8,1219.0,50.0]
[1610208520343,2.2092,1219.8,1219.3,50.0]
[1610208520742,106.2859227,1219.9,1219.0,50.0]
[1610208520942,4.00959,1219.9,1219.5,4.00959]
[1610208521148,4.00959,1219.9,1219.6,50.0]
[1610208521545,4.00959,1219.9,1219.5,4.00959]
[1610208521744,4.00959,1219.9,1219.7,50.0]
[1610208522146,4.00959,1219.9,1219.6,50.0]
[1610208522546,4.00959,1219.9,1219.7,50.0]
[1610208522946,4.00959,1219.9,1219.6,50.0]
[1610208523346,4.00959,1219.9,1219.7,50.0]
[1610208523745,4.00959,1219.9,1219.5,67.3603]
[1610208523746,4.00959,1219.9,1219.8,50.0]
[1610208524148,4.00959,1219.9,1219.7,50.0]
[1610208524445,4.00959,1219.9,1219.6,50.0]
[1610208524846,4.00959,1219.7,1219.5,67.3603]
[1610208525246,4.00959,1219.7,1219.6,50.0]
[1610208527346,5.65989,1219.7,1219.6,50.0]
[1610208528549,4.00959,1219.7,1219.6,50.0]
[1610208531655,106.26964683,1220.0,1219.6,50.0]
[1610208532057,106.26964683,1220.0,1219.7,50.0]
[1610208532256,108.19428116,1220.1,1219.7,50.0]
[1610208532457,108.19428116,1220.1,1219.6,50.0]
[1610208532657,108.19428116,1220.1,1219.8,50.0]
[1610208532858,4.00959,1219.9,1219.8,50.0]
[1610208533359,4.00959,1219.9,1219.7,50.0]
[1610208533560,4.00959,1219.9,1219.8,50.0]
[1610208535460,6.30154181,1219.9,1219.8,50.0]
[1610208538165,4.00959,1219.9,1219.8,50.0]
[1610208540867,6.30101455,1219.9,1219.8,50.0]
[1610208542270,6.30101455,1219.9,1219.8,58.8325]
[1610208542969,6.30101455,1219.9,1219.8,62.84209]
[1610208543770,106.25329872,1220.3,1219.8,62.84209]
[1610208543969,106.25329872,1220.3,1219.8,54.00959]
[1610208544170,106.25329872,1220.3,1220.0,54.2954]
[1610208544972,2.29078381,1220.2,1220.1,4.00959]
[1610208547073,6.30037381,1220.2,1220.1,4.00959]
[1610208547876,4.00959,1220.2,1220.1,4.00959]
[1610208548075,4.00959,1220.2,1220.0,54.2954]
[1610208548275,4.00959,1220.2,1220.1,50.0]
[1610208549278,6.30024786,1220.2,1220.1,50.0]
[1610208555384,6.30024786,1220.2,1220.1,104.3232]
[1610208558184,6.30024786,1220.2,1220.1,50.0]
[1610208561691,6.30024786,1220.2,1220.0,50.0]
[1610208562094,112.55072483,1220.2,1219.9,50.0]
[1610208562693,114.19392483,1220.2,1220.0,50.0]
[1610208563094,114.19392483,1220.2,1219.9,50.0]
[1610208563394,2.28009135,1220.1,1219.9,50.0]
[1610208563596,2.28009135,1220.1,1219.8,55.1302]
[1610208564294,2.28009135,1220.1,1219.9,50.0]
[1610208564494,2.28009135,1220.1,1220.0,50.0]
[1610208565096,6.28968135,1220.1,1219.9,50.0]
[1610208565497,6.28968135,1220.1,1220.0,50.0]
[1610208566098,4.00959,1220.1,1220.0,50.0]
[1610208567600,6.29066098,1220.1,1220.0,50.0]
[1610208571105,4.00959,1220.1,1220.0,50.0]
[1610208571708,6.29077001,1220.1,1220.0,50.0]
[1610208576611,6.29077001,1220.1,1219.9,50.0]
[1610208576913,6.29077001,1220.1,1220.0,50.0]
[1610208577312,2.28140388,1220.0,1219.6,50.0]
[1610208577512,4.71920388,1220.0,1219.6,50.0]
[1610208577712,106.27560137,1219.9,1219.4,96.7749]
[1610208577914,106.27560137,1219.9,1219.4,46.7749]
[1610208578512,106.27560137,1219.9,1219.4,96.7749]
[1610208578714,2.28239087,1219.8,1219.4,96.7749]
[1610208578913,2.28239087,1219.8,1219.5,50.0]
[1610208579114,4.00959,1219.6,1219.5,50.0]
[1610208579313,5.94969,1219.6,1219.4,96.7749]
[1610208579713,5.94969,1219.6,1219.5,50.0]
[1610208579914,8.23232442,1219.6,1219.5,50.0]
[1610208580114,8.23232442,1219.6,1219.4,96.7749]
[1610208580414,8.23232442,1219.6,1219.5,50.0]
[1610208580816,8.23232442,1219.6,1219.4,96.7749]
[1610208581715,8.23232442,1219.6,1219.4,46.7749]
[1610208582117,8.23232442,1219.6,1219.5,50.0]
[1610208582616,8.23232442,1219.6,1219.4,96.7749]
[1610208582816,5.94969,1219.6,1219.4,96.7749]
[1610208583318,5.94969,1219.6,1219.5,50.0]
[1610208584622,5.94969,1219.6,1219.4,96.7749]
[1610208585420,5.94969,1219.6,1219.4,46.7749]
[1610208585822,5.94969,1219.6,1219.4,50.0]
[1610208586222,5.94969,1219.6,1219.3,50.0]
[1610208586624,5.94969,1219.6,1219.2,50.0]
[1610208587022,2.28320973,1219.5,1218.8,50.0]
[1610208587225,4.00959,1218.9,1218.7,58.8167]
[1610208587627,4.00959,1218.9,1218.8,50.0]
[1610208591830,4.00959,1218.9,1218.5,50.0]
[1610208592031,4.00959,1218.9,1218.1,1.7582]
[1610208592230,4.00959,1218.9,1218.8,50.0]
[1610208592431,4.00959,1218.9,1218.5,50.0]
[1610208592832,4.00959,1218.9,1218.8,50.0]
[1610208593434,4.00959,1218.9,1218.1,1.7582]
[1610208593835,4.00959,1218.9,1218.0,61.0172]
[1610208594033,11.13109,1218.9,1218.2,50.0]
[1610208594433,11.13109,1218.9,1218.0,61.0172]
[1610208594434,11.13109,1218.9,1218.1,50.0]
[1610208594635,34.00959,1218.9,1218.3,50.0]
[1610208595037,56.1289,1218.7,1218.0,50.0]
[1610208595237,4.00959,1218.1,1218.0,50.0]
[1610208595437,4.00959,1218.1,1217.8,50.0]
[1610208595836,4.00959,1218.1,1217.9,50.0]
[1610208596038,4.00959,1218.1,1217.6,50.0]
[1610208596237,63.3668,1218.4,1217.6,50.0]
[1610208596638,63.3668,1218.4,1218.0,50.0]
[1610208596838,63.3668,1218.4,1217.7,50.0]
[1610208597239,4.00959,1217.8,1217.7,50.0]
[1610208597439,4.00959,1217.8,1217.5,2.1779]
[1610208597640,4.00959,1217.8,1217.7,50.0]
[1610208598039,2.5671,1218.1,1217.6,50.0]
[1610208598040,60.1085,1218.0,1217.6,50.0]
[1610208598439,61.7263,1218.0,1217.3,50.0]
[1610208598839,61.7263,1218.0,1217.4,50.0]
[1610208599140,4.00959,1217.5,1217.2,50.0]
[1610208599541,4.00959,1217.5,1217.3,50.0]
[1610208599941,4.00959,1217.5,1217.2,50.0]
[1610208600441,4.00959,1217.5,1217.3,50.0]
[1610208600842,4.00959,1217.5,1216.9,50.0]
[1610208601241,4.00959,1217.5,1216.6,65.18]
[1610208601242,56.7665,1217.6,1217.3,50.0]
[1610208601443,1.9262,1217.7,1217.3,50.0]
[1610208601642,1.9262,1217.7,1217.2,50.0]
[1610208602042,1.9262,1217.7,1217.3,50.0]
[1610208603243,1.9262,1217.7,1217.4,50.0]
[1610208603642,1.9262,1217.7,1217.5,50.0]
[1610208604045,1.9262,1217.7,1217.5,103.6742]
[1610208604242,1.9262,1217.7,1217.5,53.6742]
[1610208604543,2.5671,1218.1,1217.5,53.6742]
[1610208604544,2.5671,1218.1,1217.6,50.0]
[1610208604744,1.8845,1218.4,1217.6,50.0]
[1610208604944,106.2337666,1218.6,1217.7,50.0]
[1610208605348,4.00959,1217.8,1217.5,53.6742]